bitfinex/quotes_BTCUSD_20230118
["timestamp","ask_amount","ask_price","bid_price","bid_amount"]
[1674016705906,2.31549506,21292.0,21291.0,0.00685879]
[1674016707885,2.20509506,21292.0,21291.0,0.00685879]
[1674016709115,2.11409506,21292.0,21291.0,0.00685879]
[1674016709467,2.20509506,21292.0,21291.0,0.00685879]
[1674016710781,2.20509506,21292.0,21291.0,0.00674084]
[1674016712321,2.20499506,21292.0,21291.0,0.00674084]
[1674016718099,1.79459506,21292.0,21291.0,0.00674084]
[1674016718323,1.47288506,21292.0,21291.0,0.00674084]
[1674016718978,1.79469506,21292.0,21291.0,0.00674084]
[1674016719195,1.47288506,21292.0,21291.0,0.00674084]
[1674016719410,1.79469506,21292.0,21291.0,0.00674084]
[1674016720836,1.47288506,21292.0,21291.0,0.00674084]
[1674016723122,1.00322606,21292.0,21291.0,0.00674084]
[1674016723642,0.53356706,21292.0,21291.0,0.00674084]
[1674016724103,0.44256706,21292.0,21291.0,0.00674084]
[1674016724355,0.44256706,21292.0,21291.0,0.00774084]
[1674016724356,0.52556706,21292.0,21291.0,0.00774084]
[1674016727288,0.99522606,21292.0,21291.0,0.00774084]
[1674016737760,0.52556706,21292.0,21291.0,0.00774084]
[1674016742682,0.52556706,21292.0,21289.0,0.1125763]
[1674016742922,0.52556706,21292.0,21288.0,1.70005386]
[1674016743171,0.67805383,21292.0,21288.0,1.33836714]
[1674016743443,0.67805383,21292.0,21288.0,1.70005386]
[1674016743918,0.59505383,21292.0,21288.0,1.70005386]
[1674016744183,0.52656706,21292.0,21288.0,1.70105386]
[1674016744774,0.0925,21292.0,21289.0,0.2221763]
[1674016744971,0.084,21292.0,21290.0,0.32181]
[1674016745294,0.084,21292.0,21290.0,0.5822793]
[1674016745549,0.084,21292.0,21291.0,0.32181]
[1674016745806,0.084,21292.0,21290.0,0.94396602]
[1674016746064,0.49503202,21293.0,21290.0,0.5822793]
[1674016746308,0.084,21292.0,21290.0,0.470703]
[1674016746562,0.49503202,21293.0,21290.0,0.469703]
[1674016748315,0.084,21292.0,21291.0,0.001]
[1674016748565,0.084,21292.0,21290.0,0.469703]
[1674016748828,0.084,21292.0,21290.0,0.470703]
[1674016749557,0.49503202,21293.0,21290.0,0.469703]
[1674016749813,0.084,21292.0,21290.0,0.470703]
[1674016752430,0.084,21292.0,21290.0,0.580603]
[1674016752926,0.084,21292.0,21291.0,0.32181]
[1674016753154,0.084,21292.0,21290.0,0.580603]
[1674016754383,0.077,21292.0,21290.0,0.580603]
[1674016754614,0.49503202,21293.0,21290.0,0.579603]
[1674016755121,0.076,21292.0,21290.0,0.581603]
[1674016755850,0.49503202,21293.0,21290.0,0.579603]
[1674016757107,0.069,21292.0,21290.0,0.581603]
[1674016757355,0.49503202,21293.0,21290.0,0.579603]
[1674016757618,0.56403202,21293.0,21290.0,0.581603]
[1674016758116,0.49503202,21293.0,21290.0,0.581603]
[1674016758360,0.49503202,21293.0,21290.0,0.579603]
[1674016758863,0.56403202,21293.0,21290.0,0.581603]
[1674016760977,0.56403202,21293.0,21290.0,0.6941793]
[1674016761235,0.56403202,21293.0,21290.0,0.1119]
[1674016762526,1.03367202,21293.0,21290.0,0.002]
[1674016763068,1.29249544,21293.0,21290.0,0.002]
[1674016763881,1.03367202,21293.0,21290.0,0.002]
[1674016764921,0.56403202,21293.0,21290.0,0.002]
[1674016765181,0.56403202,21293.0,21290.0,0.1145763]
[1674016766669,0.56393585,21293.0,21290.0,0.1145763]
[1674016768910,1.03357585,21293.0,21290.0,0.1145763]
[1674016769163,1.03357585,21293.0,21290.0,0.002]
[1674016769936,0.71393585,21293.0,21290.0,0.002]
[1674016770195,0.32181,21292.0,21290.0,0.002]
[1674016770456,0.32181,21291.0,21290.0,0.002]
[1674016770720,0.71393585,21293.0,21290.0,0.002]
[1674016770982,1.03357485,21293.0,21290.0,0.002]
[1674016771248,0.32181,21292.0,21289.0,0.6918863]
[1674016771535,0.32181,21291.0,21290.0,0.002]
[1674016771759,0.076,21292.0,21290.0,0.002]
[1674016772280,0.32181,21291.0,21289.0,0.6918863]
[1674016772556,0.96457485,21293.0,21290.0,0.001]
[1674016772837,1.04157485,21293.0,21289.0,0.6918863]
[1674016773051,0.39781,21292.0,21290.0,0.002]
[1674016773331,0.32181,21291.0,21289.0,0.6918863]
[1674016773571,1.30387841,21293.0,21290.0,0.001]
[1674016773816,1.15387841,21293.0,21289.0,0.6918863]
[1674016774085,0.39781,21292.0,21290.0,0.002]
[1674016774345,0.32181,21291.0,21289.0,0.6918863]
[1674016774562,1.07687841,21293.0,21289.0,0.6918863]
[1674016774856,0.93963191,21292.0,21289.0,0.6918863]
[1674016775072,0.32181,21291.0,21289.0,0.1096]
[1674016775318,0.469662,21292.0,21290.0,0.001]
[1674016775594,0.469662,21292.0,21289.0,0.1096]
[1674016775867,0.32181,21291.0,21289.0,0.1106]
[1674016776126,0.32181,21290.0,21289.0,0.1096]
[1674016776380,0.469662,21292.0,21289.0,0.1116]
[1674016776381,0.03,21291.0,21289.0,0.1116]
[1674016776625,0.469662,21292.0,21289.0,0.1096]
[1674016776880,0.545662,21292.0,21289.0,0.1116]
[1674016777138,0.32181,21291.0,21289.0,0.1096]
[1674016777389,0.006,21290.0,21289.0,0.1236]
[1674016778673,0.469662,21292.0,21289.0,0.1096]
[1674016778928,0.545662,21292.0,21289.0,0.1116]
[1674016779290,0.545662,21292.0,21289.0,0.1096]
[1674016779475,0.545662,21292.0,21286.0,0.00632493]
[1674016779476,0.51062577,21290.0,21286.0,0.00632493]
[1674016779746,0.11246945,21287.0,21286.0,0.00632493]
[1674016779999,0.79158,21287.0,21286.0,0.00632493]
[1674016780261,1.73993891,21287.0,21286.0,0.00632493]
[1674016780556,1.26985,21287.0,21286.0,0.00632493]
[1674016781069,1.42445001,21287.0,21286.0,0.00632493]
[1674016781856,1.43445001,21287.0,21286.0,0.00632493]
[1674016783427,1.73445001,21287.0,21286.0,0.00632493]
[1674016783958,1.43445001,21287.0,21286.0,0.00632493]
[1674016785490,1.73445001,21287.0,21286.0,0.00632493]
[1674016786000,2.10574603,21287.0,21286.0,0.00632493]
[1674016787832,2.10574603,21287.0,21286.0,2.493e-05]
[1674016787833,1.95485001,21287.0,21286.0,2.493e-05]
[1674016788088,2.31476261,21287.0,21286.0,2.493e-05]
[1674016788359,2.65485002,21287.0,21286.0,2.493e-05]
[1674016788618,2.64485002,21287.0,21286.0,2.493e-05]
[1674016788879,2.73585002,21287.0,21286.0,2.493e-05]
[1674016789143,2.64485002,21287.0,21286.0,2.493e-05]
[1674016789397,3.56986479,21287.0,21286.0,2.493e-05]
[1674016789683,3.20995219,21287.0,21286.0,2.493e-05]
[1674016789886,3.56986479,21287.0,21286.0,2.493e-05]
[1674016790133,3.20995219,21287.0,21286.0,2.493e-05]
[1674016790660,2.73585002,21287.0,21286.0,2.493e-05]
[1674016792703,2.03585001,21287.0,21286.0,2.493e-05]
[1674016795713,1.62565001,21287.0,21286.0,2.493e-05]
[1674016799031,1.51545001,21287.0,21286.0,2.493e-05]
[1674016799265,1.19364001,21287.0,21286.0,2.493e-05]
[1674016799821,1.10264001,21287.0,21286.0,2.493e-05]
[1674016800871,1.18564001,21287.0,21286.0,0.00102493]
[1674016801121,1.10264001,21287.0,21286.0,2.493e-05]
[1674016801377,1.18564001,21287.0,21286.0,0.00102493]
[1674016801911,0.70737001,21287.0,21286.0,0.00102493]
[1674016808123,0.23760001,21287.0,21286.0,0.00102493]
[1674016808378,0.23760001,21287.0,21286.0,0.11032493]
[1674016808653,0.23760001,21287.0,21286.0,0.43213493]
[1674016809448,0.23760001,21287.0,21286.0,0.11032493]
[1674016812450,0.23760001,21287.0,21286.0,0.00102493]
[1674016816989,0.23760001,21287.0,21284.0,0.90581337]
[1674016817251,0.23760001,21287.0,21285.0,0.1098]
[1674016817704,0.68559369,21287.0,21285.0,0.1098]
[1674016817952,0.60259369,21287.0,21285.0,0.1098]
[1674016818991,0.68659369,21287.0,21285.0,0.1098]
[1674016819242,0.60259369,21287.0,21285.0,0.1098]
[1674016819489,0.68659369,21287.0,21285.0,0.1108]
[1674016821000,0.23860001,21287.0,21285.0,0.1108]
[1674016822310,0.23860001,21287.0,21285.0,0.001]
[1674016827479,0.23860001,21287.0,21284.0,0.579635]
[1674016827480,0.15460001,21287.0,21284.0,0.579635]
[1674016828234,0.23160001,21287.0,21285.0,0.001]
[1674016828822,0.15460001,21287.0,21284.0,0.579635]
[1674016829086,0.23160001,21287.0,21284.0,0.579635]
[1674016829428,0.30860001,21287.0,21285.0,0.001]
[1674016829904,0.15460001,21287.0,21284.0,0.579635]
[1674016830156,0.23160001,21287.0,21284.0,0.580635]
[1674016830404,0.15460001,21287.0,21284.0,0.579635]
[1674016831667,0.15460001,21287.0,21285.0,0.001]
[1674016831914,0.15460001,21287.0,21284.0,0.579635]
[1674016832839,0.0190421,21286.0,21284.0,0.579635]
[1674016833086,0.0190421,21286.0,21285.0,0.001]
[1674016833321,0.0190421,21286.0,21284.0,0.579635]
[1674016833560,0.0190421,21286.0,21284.0,0.580635]
[1674016833800,0.48740164,21286.0,21284.0,0.001]
[1674016834284,0.32181,21285.0,21284.0,0.001]
[1674016834519,0.32181,21285.0,21283.0,0.00978884]
[1674016834520,0.48740164,21286.0,21283.0,0.00978884]
[1674016834772,0.56340164,21286.0,21285.0,0.001]
[1674016835022,0.56340164,21286.0,21283.0,0.00978884]
[1674016835264,0.047,21285.0,21284.0,0.002]
[1674016835504,0.48740164,21286.0,21283.0,0.00978884]
[1674016835777,0.56340164,21286.0,21285.0,0.001]
[1674016836000,0.48740164,21286.0,21283.0,0.12209052]
[1674016836271,0.047,21285.0,21284.0,0.002]
[1674016836527,0.48740164,21286.0,21283.0,0.12209052]
[1674016837104,0.48740164,21286.0,21283.0,0.10709052]
[1674016837266,0.48740164,21286.0,21282.0,0.75586452]
[1674016837521,0.63988841,21286.0,21282.0,0.75586452]
[1674016837755,1.18568341,21286.0,21285.0,0.001]
[1674016838004,1.89710971,21286.0,21282.0,0.11754863]
[1674016838271,0.32181,21285.0,21282.0,0.11854863]
[1674016838514,1.18568341,21286.0,21282.0,0.11854863]
[1674016838515,1.57950441,21286.0,21282.0,0.11754863]
[1674016838763,1.50301764,21286.0,21285.0,0.001]
[1674016838989,1.89712939,21286.0,21282.0,0.11754863]
[1674016839235,0.32181,21285.0,21282.0,0.11754863]
[1674016839472,1.10969741,21286.0,21282.0,0.11754863]
[1674016839722,0.95721064,21286.0,21282.0,0.11754863]
[1674016839966,1.03321064,21286.0,21285.0,0.001]
[1674016840208,1.97313102,21286.0,21285.0,0.001]
[1674016840452,2.29494102,21286.0,21285.0,0.001]
[1674016840986,2.21894102,21286.0,21282.0,0.11754863]
[1674016841221,0.32181,21285.0,21282.0,0.11854863]
[1674016841470,1.10969741,21286.0,21282.0,0.11754863]
[1674016841716,0.0187496,21285.0,21282.0,0.58742863]
[1674016842211,0.0657496,21285.0,21282.0,0.58942863]
[1674016842446,0.0187496,21285.0,21282.0,0.58742863]
[1674016842693,0.0187496,21285.0,21282.0,0.58842863]
[1674016842940,0.0947496,21285.0,21282.0,0.58842863]
[1674016845483,0.0947496,21285.0,21282.0,1.22676552]
[1674016846304,0.0947496,21285.0,21282.0,1.80565757]
[1674016846556,0.0947496,21285.0,21283.0,0.16845689]
[1674016846802,0.0947496,21285.0,21283.0,0.63830589]
[1674016847060,0.0947496,21285.0,21283.0,1.74482712]
[1674016847316,0.0947496,21285.0,21283.0,1.05236295]
[1674016847594,0.0947496,21285.0,21283.0,0.469858]
[1674016847595,0.0187496,21285.0,21283.0,0.469858]
[1674016848079,0.0947496,21285.0,21283.0,0.470858]
[1674016848321,0.0947496,21285.0,21283.0,0.58351395]
[1674016849088,0.53604144,21285.0,21283.0,0.11365595]
[1674016849347,0.53604144,21285.0,21283.0,0.001]
[1674016849348,0.32181,21284.0,21283.0,0.001]
[1674016849901,1.73013013,21284.0,21283.0,0.001]
[1674016850188,3.67836468,21284.0,21283.0,0.001]
[1674016850433,3.84706885,21284.0,21282.0,0.00714863]
[1674016850681,1.58646243,21284.0,21283.0,0.002]
[1674016850938,2.84832436,21284.0,21283.0,0.002]
[1674016851495,2.68886113,21284.0,21282.0,0.00714863]
[1674016851732,0.33031,21283.0,21282.0,0.00914863]
[1674016851987,1.270026,21283.0,21282.0,0.00714863]
[1674016852261,1.380426,21283.0,21282.0,0.00714863]
[1674016853513,1.380426,21283.0,21282.0,0.00914863]
[1674016853776,1.380426,21283.0,21282.0,0.00714863]
[1674016854049,1.384426,21283.0,21282.0,0.02114863]
[1674016854291,1.5655917,21283.0,21282.0,0.02114863]
[1674016854542,1.7155917,21283.0,21282.0,0.02114863]
[1674016854761,1.5655917,21283.0,21282.0,0.02114863]
[1674016855043,2.0155917,21283.0,21282.0,0.02114863]
[1674016855295,1.834426,21283.0,21282.0,0.02114863]
[1674016855554,1.384426,21283.0,21282.0,0.02114863]
[1674016856625,1.794726,21283.0,21282.0,0.02114863]
[1674016857139,2.15180366,21283.0,21282.0,0.02114863]
[1674016857408,3.09191834,21283.0,21282.0,0.02114863]
[1674016857924,2.285026,21283.0,21282.0,0.02114863]
[1674016858436,2.285026,21283.0,21282.0,0.02107226]
[1674016860988,1.985026,21283.0,21282.0,0.02107226]
[1674016862293,2.174626,21283.0,21282.0,0.02107226]
[1674016863384,1.874626,21283.0,21282.0,0.02107226]
[1674016865477,1.764326,21283.0,21282.0,0.21179821]
[1674016865740,0.972658,21283.0,21282.0,0.02107226]
[1674016865990,0.482358,21283.0,21282.0,0.02107226]
[1674016866799,1.09718498,21283.0,21282.0,0.02107226]
[1674016867064,1.52879498,21283.0,21282.0,0.02107226]
[1674016868132,1.41899498,21283.0,21282.0,0.02107226]
[1674016870349,0.804168,21283.0,21282.0,0.02107226]
[1674016872114,0.33431,21283.0,21282.0,0.02107226]
[1674016872604,0.0125,21283.0,21282.0,0.02107226]
[1674016875661,0.004,21283.0,21282.0,0.02107226]
[1674016875961,0.004,21283.0,21282.0,1.16964558]
[1674016876197,0.004,21283.0,21282.0,1.16967801]
[1674016876714,0.004,21283.0,21282.0,1.63955801]
[1674016877504,0.004,21283.0,21282.0,1.71465801]
[1674016877767,0.004,21283.0,21282.0,1.71459295]
[1674016878275,0.004,21283.0,21282.0,1.35774226]
[1674016878495,0.004,21283.0,21282.0,1.71459317]
[1674016879339,0.004,21283.0,21282.0,1.35774226]
[1674016880882,0.0039292,21283.0,21282.0,1.35774226]
[1674016881401,0.0039292,21283.0,21282.0,1.71455958]
[1674016881658,1e-08,21283.0,21282.0,1.71455958]
[1674016882696,1e-08,21283.0,21282.0,1.82721553]
[1674016882950,1e-08,21283.0,21282.0,2.614855]
[1674016883212,1e-08,21283.0,21282.0,2.80219905]
[1674016883462,1e-08,21283.0,21282.0,2.91464425]
[1674016883739,1e-08,21283.0,21282.0,2.80219905]
[1674016883978,1e-08,21283.0,21282.0,2.61464198]
[1674016884244,0.0187496,21285.0,21282.0,2.48819905]
[1674016884510,0.0187496,21285.0,21284.0,0.0745]
[1674016884767,0.0187496,21285.0,21284.0,1.69260279]
[1674016885276,0.0187496,21285.0,21284.0,1.335949]
[1674016886796,0.0227496,21285.0,21284.0,1.381949]
[1674016887368,0.0227496,21285.0,21284.0,0.912113]
[1674016887568,0.0227496,21285.0,21284.0,0.590336]
[1674016887814,0.0227496,21285.0,21284.0,0.912146]
[1674016888072,0.0227496,21285.0,21284.0,0.590336]
[1674016888582,0.0227496,21285.0,21284.0,0.837646]
[1674016890111,0.0227496,21285.0,21284.0,0.515836]
[1674016890668,0.0227496,21285.0,21284.0,0.837646]
[1674016893240,0.0227496,21285.0,21284.0,1.307482]
[1674016898091,0.0227496,21285.0,21284.0,0.837646]
[1674016898372,0.0227496,21285.0,21284.0,0.515836]
[1674016900454,0.0227496,21285.0,21284.0,0.837646]
[1674016900962,0.0227496,21285.0,21284.0,0.515836]
[1674016901690,0.0227496,21285.0,21284.0,1.307482]
[1674016905715,0.02267939,21285.0,21284.0,1.307482]
[1674016906229,0.02267939,21285.0,21284.0,0.837646]
[1674016907550,0.02267939,21285.0,21284.0,0.515836]
[1674016908622,0.02267939,21285.0,21284.0,0.046]
[1674016908623,0.17516616,21285.0,21284.0,0.046]
[1674016908875,0.34448939,21285.0,21284.0,0.046]
[1674016909422,0.49448939,21285.0,21284.0,0.046]
[1674016909701,0.49448939,21285.0,21280.0,0.0071014]
[1674016909702,0.15,21284.0,21280.0,0.0071014]
[1674016909969,0.0745,21281.0,21280.0,0.0071014]
[1674016910227,1.561614,21281.0,21280.0,0.0071014]
[1674016910501,1.570114,21281.0,21280.0,0.0071014]
[1674016911279,2.60132681,21281.0,21280.0,0.0071014]
[1674016911558,1.570114,21281.0,21280.0,0.0071014]
[1674016911814,1.661114,21281.0,21280.0,0.0071014]
[1674016912349,3.70107684,21281.0,21280.0,0.0071014]
[1674016912611,3.8134182,21281.0,21280.0,0.0071014]
[1674016912873,3.70107684,21281.0,21280.0,0.0071014]
[1674016913156,2.48488114,21281.0,21280.0,0.0071014]
[1674016913443,2.79102768,21281.0,21280.0,0.0071014]
[1674016914740,2.09102767,21281.0,21280.0,0.0071014]
[1674016921668,1.79837641,21281.0,21280.0,0.0071014]
[1674016923218,2.09837641,21281.0,21280.0,0.0071014]
[1674016926090,1.79837641,21281.0,21280.0,0.0071014]
[1674016926385,1.78987641,21281.0,21280.0,0.0071014]
[1674016926900,2.08987641,21281.0,21280.0,0.0071014]
[1674016928247,1.78987641,21281.0,21280.0,0.0071014]
[1674016928750,1.71477641,21281.0,21280.0,0.0071014]
[1674016930076,2.01477641,21281.0,21280.0,0.0071014]
[1674016930511,1.71477641,21281.0,21280.0,0.0071014]
[1674016930769,2.01477641,21281.0,21280.0,0.0071014]
[1674016931538,1.07497241,21281.0,21280.0,0.0071014]
[1674016931790,1.24487441,21281.0,21280.0,0.0071014]
[1674016932554,1.54487441,21281.0,21280.0,0.0071014]
[1674016932808,1.24487441,21281.0,21280.0,0.0071014]
[1674016933992,1.24487441,21281.0,21280.0,0.0069899]
[1674016934332,2.01477641,21281.0,21280.0,0.0069899]
[1674016935340,1.71477641,21281.0,21280.0,0.0069899]
[1674016935610,2.01477641,21281.0,21280.0,0.0069899]
[1674016936101,1.71477641,21281.0,21280.0,0.0069899]
[1674016936378,2.02327641,21281.0,21280.0,0.0069899]
[1674016937987,2.24114113,21281.0,21280.0,0.0069899]
[1674016938417,2.02327641,21281.0,21280.0,0.0069899]
[1674016940190,2.72327642,21281.0,21280.0,0.0069899]
[1674016940730,2.72327642,21281.0,21275.0,0.59036585]
[1674016940986,0.78279677,21280.0,21275.0,0.23461027]
[1674016941237,0.94424577,21279.0,21275.0,0.23461027]
[1674016941497,0.62243577,21279.0,21275.0,0.23461027]
[1674016942510,0.469949,21279.0,21275.0,0.23461027]
[1674016942821,0.479949,21279.0,21275.0,0.23461027]
[1674016944937,1.07538241,21279.0,21274.0,0.48297838]
[1674016945452,1.07538241,21279.0,21274.0,0.67370433]
[1674016945930,1.24576505,21279.0,21274.0,0.67370433]
[1674016945948,1.23576505,21279.0,21274.0,0.67370433]
[1674016946752,1.71471105,21279.0,21274.0,0.67370433]
[1674016947574,1.54432841,21279.0,21274.0,0.78614702]
[1674016948372,1.54432841,21279.0,21274.0,0.01294238]
[1674016948644,1.54432841,21279.0,21274.0,0.20366833]
[1674016948645,0.33031,21278.0,21274.0,0.20366833]
[1674016948909,0.791804,21277.0,21274.0,0.01294238]
[1674016949162,0.32181,21276.0,21274.0,0.01294238]
[1674016949431,0.469994,21277.0,21274.0,0.12538507]
[1674016949993,0.469994,21277.0,21274.0,0.01294238]
[1674016950260,0.32181,21276.0,21274.0,0.12538507]
[1674016950537,0.478994,21277.0,21274.0,0.01294238]
[1674016950804,0.478994,21277.0,21274.0,0.12538507]
[1674016951345,0.009,21277.0,21274.0,0.48456791]
[1674016951602,0.009,21277.0,21275.0,0.11244269]
[1674016952386,0.46998,21278.0,21275.0,0.11244269]
[1674016954521,0.47898,21278.0,21275.0,0.11244269]
[1674016954784,0.009,21278.0,21275.0,0.11244269]
[1674016955344,0.009,21278.0,21275.0,0.28089958]
[1674016955878,0.009,21278.0,21275.0,0.83620827]
[1674016956145,0.009,21278.0,21275.0,0.28089958]
[1674016957162,0.009,21278.0,21275.0,0.83620818]
[1674016957414,0.009,21278.0,21275.0,0.28089958]
[1674016957701,0.009,21278.0,21275.0,0.11244269]
[1674016957939,0.009,21278.0,21275.0,0.28089958]
[1674016958186,0.009,21278.0,21275.0,0.11244269]
[1674016959488,0.469974,21278.0,21275.0,0.11244269]
[1674016959765,0.947942,21278.0,21275.0,0.11244269]
[1674016960563,0.477968,21278.0,21275.0,0.11244269]
[1674016960813,0.477968,21278.0,21274.0,0.87379896]
[1674016961068,0.63045477,21278.0,21274.0,0.87379896]
[1674016961321,0.477968,21278.0,21274.0,0.87379896]
[1674016961619,0.477968,21278.0,21275.0,0.11244269]
[1674016961871,0.477968,21278.0,21274.0,0.87379896]
[1674016962116,0.39588404,21277.0,21274.0,0.01294238]
[1674016962394,0.32181,21276.0,21274.0,0.01294238]
[1674016962664,0.39588404,21277.0,21274.0,0.01294238]
[1674016962933,0.39588404,21277.0,21274.0,0.12538507]
[1674016963956,0.009,21277.0,21274.0,0.29384196]
[1674016964214,0.009,21277.0,21274.0,0.76389396]
[1674016964466,0.009,21277.0,21275.0,0.11244269]
[1674016964987,0.00892424,21277.0,21276.0,0.43425269]
[1674016965242,0.92286588,21280.0,21276.0,0.90426569]
[1674016965496,0.45294088,21280.0,21277.0,0.20097095]
[1674016965714,0.45294088,21280.0,21277.0,0.19072595]
[1674016965998,0.45294088,21280.0,21276.0,1.22090658]
[1674016966259,0.45294088,21280.0,21276.0,1.24317564]
[1674016966769,0.45294088,21280.0,21277.0,0.32181]
[1674016967054,0.0209302,21279.0,21276.0,0.75089458]
[1674016967289,0.008,21277.0,21276.0,0.58243769]
[1674016967551,0.0209302,21279.0,21276.0,1.05243469]
[1674016967801,0.0209302,21279.0,21277.0,0.32181]
[1674016968055,0.0209302,21279.0,21276.0,1.05243469]
[1674016968332,0.1059302,21279.0,21276.0,1.05243469]
[1674016968569,0.1059302,21279.0,21277.0,0.32181]
[1674016968824,0.1059302,21279.0,21278.0,0.010225]
[1674016969078,0.1059302,21279.0,21276.0,1.22090758]
[1674016969331,0.1059302,21279.0,21276.0,0.939993]
[1674016969597,0.0209302,21279.0,21276.0,0.939993]
[1674016970124,0.1059302,21279.0,21276.0,0.939993]
[1674016970387,0.0209302,21279.0,21276.0,0.939993]
[1674016970675,0.1059302,21279.0,21276.0,0.939993]
[1674016971175,0.1059302,21279.0,21276.0,1.05243569]
[1674016971903,0.1059302,21279.0,21276.0,0.939993]
[1674016972429,0.1059302,21279.0,21276.0,0.580495]
[1674016973955,0.1059302,21279.0,21276.0,0.1105]
[1674016974470,0.1059302,21279.0,21276.0,0.58051]
[1674016975797,0.1059302,21279.0,21276.0,0.69295269]
[1674016977643,0.1059302,21279.0,21276.0,0.1105]
[1674016977644,0.5758792,21279.0,21276.0,0.1105]
[1674016978639,0.4908792,21279.0,21276.0,0.1105]
[1674016978906,0.5818792,21279.0,21276.0,0.1105]
[1674016979153,0.4908792,21279.0,21276.0,0.1105]
[1674016979407,0.5818792,21279.0,21276.0,0.1105]
[1674016980168,0.5768792,21279.0,21276.0,0.1105]
[1674016981487,0.1069302,21279.0,21276.0,0.1105]
[1674016981742,0.1069302,21279.0,21276.0,0.22294269]
[1674016982020,0.1069302,21279.0,21276.0,1.33142258]
[1674016982272,0.1069302,21279.0,21277.0,0.32181]
[1674016982537,0.1069302,21279.0,21276.0,1.33140358]
[1674016983085,0.1069302,21279.0,21276.0,1.16294669]
[1674016983333,0.0159302,21279.0,21276.0,1.33140358]
[1674016983593,0.0159302,21279.0,21277.0,0.32181]
[1674016983877,0.1069302,21279.0,21278.0,0.010225]
[1674016984130,0.1069302,21279.0,21277.0,0.469988]
[1674016984946,0.0159302,21279.0,21276.0,0.580492]
[1674016985164,0.1069302,21279.0,21276.0,0.580492]
[1674016985923,0.0159302,21279.0,21276.0,0.69293469]
[1674016986245,0.1069302,21279.0,21276.0,0.69293469]
[1674016986670,0.1069302,21279.0,21277.0,0.32181]
[1674016986947,0.1069302,21279.0,21278.0,0.010224]
[1674016987195,0.1069302,21279.0,21276.0,0.580492]
[1674016987701,0.1069302,21279.0,21276.0,0.69293469]
[1674016987943,0.0159302,21279.0,21276.0,0.69293469]
[1674016988206,0.1069302,21279.0,21276.0,0.580492]
[1674016988459,0.0159302,21279.0,21276.0,0.69293469]
[1674016988726,0.1069302,21279.0,21277.0,0.32181]
[1674016988974,0.1069302,21279.0,21276.0,0.69293469]
[1674016991012,0.1069302,21279.0,21277.0,0.32181]
[1674016991257,0.1069302,21279.0,21276.0,0.69293469]
[1674016992011,0.0159302,21279.0,21276.0,0.69293469]
[1674016992263,0.1069302,21279.0,21277.0,0.32181]
[1674016992502,0.0159302,21279.0,21276.0,0.69293469]
[1674016992772,0.1069302,21279.0,21276.0,0.69293469]
[1674016993814,0.1069302,21279.0,21277.0,0.32181]
[1674016994090,0.1069302,21279.0,21276.0,0.69293469]
[1674016994582,0.1069302,21279.0,21277.0,0.32181]
[1674016994837,0.1069302,21279.0,21278.0,0.120125]
[1674016995617,0.0159302,21279.0,21278.0,0.120125]
[1674016996469,0.1069302,21279.0,21278.0,0.120125]
[1674016997977,0.1069302,21279.0,21278.0,0.43171]
[1674017000494,0.1069302,21279.0,21278.0,0.32181]
[1674017000753,0.1069302,21279.0,21277.0,1.16189169]
[1674017001016,0.1069302,21279.0,21277.0,1.16190769]
[1674017001279,0.1069302,21279.0,21278.0,0.32181]
[1674017001573,0.0159302,21279.0,21278.0,0.32181]
[1674017001813,0.0159302,21279.0,21277.0,1.16190769]
[1674017002052,0.1069302,21279.0,21277.0,1.16190869]
[1674017002313,0.0159302,21279.0,21278.0,0.32181]
[1674017002584,0.1069302,21279.0,21278.0,1.012778]
[1674017002865,0.1069302,21279.0,21278.0,1.59518869]
[1674017002866,0.0159302,21279.0,21278.0,1.59518869]
[1674017003169,0.1069302,21279.0,21278.0,1.95151821]
[1674017003387,0.09100001,21279.0,21278.0,2.66232676]
[1674017003714,0.09100001,21279.0,21278.0,2.54988407]
[1674017003973,1e-08,21279.0,21278.0,2.66256938]
[1674017004267,0.08200001,21279.0,21278.0,2.66356938]
[1674017004492,1e-08,21279.0,21278.0,2.30620968]
[1674017004797,0.01700001,21279.0,21278.0,2.30839333]
[1674017005573,0.01700001,21279.0,21278.0,2.1957382]
[1674017006116,0.01700001,21279.0,21278.0,2.30838541]
[1674017006377,0.01700001,21279.0,21278.0,1.76603375]
[1674017006906,0.01700001,21279.0,21278.0,2.3211531]
[1674017007170,0.01700001,21279.0,21278.0,1.59747859]
[1674017008436,0.01700001,21279.0,21278.0,2.81185856]
[1674017008438,0.91113221,21286.0,21279.0,0.02567812]
[1674017008700,0.91113221,21286.0,21284.0,0.1097]
[1674017008701,0.44132221,21286.0,21284.0,0.1097]
[1674017008958,0.44132221,21286.0,21285.0,0.51231495]
[1674017009225,0.44132221,21286.0,21285.0,0.19072595]
[1674017009489,0.44132221,21286.0,21285.0,0.1095]
[1674017009789,0.00605478,21287.0,21285.0,0.901156]
[1674017010058,0.00605478,21287.0,21286.0,0.009942]
[1674017010319,0.00605478,21287.0,21285.0,0.93564352]
[1674017010574,0.006,21286.0,21285.0,0.93564352]
[1674017010850,0.006,21286.0,21285.0,1.73029952]
[1674017011686,0.006,21286.0,21285.0,1.84049952]
[1674017011943,0.00605478,21287.0,21285.0,1.83749952]
[1674017012450,0.00605478,21287.0,21286.0,0.230642]
[1674017012456,0.00605478,21287.0,21286.0,0.120442]
[1674017012727,0.00605478,21287.0,21286.0,0.1105]
[1674017013803,0.00605478,21287.0,21286.0,0.1135]
[1674017014056,0.07005478,21287.0,21286.0,0.1135]
[1674017022332,0.07005478,21287.0,21286.0,0.003]
[1674017022915,0.07005478,21287.0,21279.0,0.02567812]
[1674017022916,1.17201677,21287.0,21279.0,0.02567812]
[1674017023181,1.45757712,21286.0,21276.0,0.25464012]
[1674017023451,2.060032,21283.0,21276.0,0.19072595]
[1674017023714,1.13633259,21282.0,21274.0,0.01294238]
[1674017024195,1.13633259,21282.0,21274.0,0.12314238]
[1674017024196,0.1094,21280.0,21274.0,0.12314238]
[1674017024203,1.049266,21280.0,21274.0,0.12314238]
[1674017024464,0.83633259,21279.0,21274.0,0.12314238]
[1674017024724,1.41428177,21278.0,21274.0,0.12314238]
[1674017024987,0.321842,21277.0,21274.0,0.12314238]
[1674017025286,0.321842,21276.0,21274.0,0.12314238]
[1674017025526,0.15248677,21277.0,21274.0,0.12314238]
[1674017025781,1.69910572,21278.0,21274.0,0.12314238]
[1674017026037,1.3456019,21278.0,21274.0,0.12314238]
[1674017026305,0.330842,21277.0,21274.0,0.12314238]
[1674017026558,0.321842,21276.0,21274.0,0.12314238]